[Event "Titled Tuesday Blitz July 13 2021"]
[White "Maghsoodloo, Parham"]
[Black "Guzman Moneo, Alberto"]
[WhiteFideId "12539929"]
[BlackFideId "2209616"]
[WhiteElo "2601"]
[BlackElo "2157"]
[Result "1-0"]
[Round "03"]
[TimeControl "180+1"]
[Date "2021.07.13"]
[WhiteClock "0:01:46"]
[BlackClock "0:00:02"]

1. e4 {[%clk 0:03:00]}  c5 {[%clk 0:02:59]} 2. Nf3 {[%clk 0:03:01]}  d6 {[%clk 0:02:59]} 3. d4 {[%clk 0:03:00]}  cxd4 {[%clk 0:03:00]} 4. Nxd4 {[%clk 0:03:01]}  Nf6 {[%clk 0:03:00]} 5. Nc3 {[%clk 0:03:01]}  Bd7 {[%clk 0:03:00]} 6. Bg5 {[%clk 0:03:02]}  e6 {[%clk 0:03:00]} 7. Bc4 {[%clk 0:03:02]}  a6 {[%clk 0:02:57]} 8. f4 {[%clk 0:03:03]}  h6 {[%clk 0:02:52]} 9. Bh4 {[%clk 0:03:02]}  b5 {[%clk 0:02:34]} 10. Bb3 {[%clk 0:03:02]}  b4 {[%clk 0:02:34]} 11. Nce2 {[%clk 0:03:00]}  g5 {[%clk 0:02:33]} 12. fxg5 {[%clk 0:02:57]}  Nxe4 {[%clk 0:02:33]} 13. Qd3 {[%clk 0:02:57]}  d5 {[%clk 0:02:28]} 14. Nf4 {[%clk 0:02:48]}  hxg5 {[%clk 0:02:21]} 15. Nxd5 {[%clk 0:02:48]}  Rxh4 {[%clk 0:02:07]} 16. O-O-O {[%clk 0:02:42]}  Bg7 {[%clk 0:01:18]} 17. Qf3 {[%clk 0:02:33]}  Nc6 {[%clk 0:00:49]} 18. Nxc6 {[%clk 0:02:08]}  Bxc6 {[%clk 0:00:50]} 19. g3 {[%clk 0:02:08]}  Bxd5 {[%clk 0:00:43]} 20. Bxd5 {[%clk 0:02:08]}  exd5 {[%clk 0:00:39]} 21. gxh4 {[%clk 0:02:08]}  Qf6 {[%clk 0:00:37]} 22. Qxf6 {[%clk 0:02:08]}  Nxf6 {[%clk 0:00:36]} 23. hxg5 {[%clk 0:02:08]}  Ne4 {[%clk 0:00:31]} 24. Rxd5 {[%clk 0:02:06]}  Nxg5 {[%clk 0:00:27]} 25. Rg1 {[%clk 0:01:54]}  Ne6 {[%clk 0:00:24]} 26. Ra5 {[%clk 0:01:52]}  Ke7 {[%clk 0:00:18]} 27. Rg4 {[%clk 0:01:52]}  Rh8 {[%clk 0:00:15]} 28. h4 {[%clk 0:01:52]}  Bf6 {[%clk 0:00:11]} 29. Rxb4 {[%clk 0:01:49]}  Rxh4 {[%clk 0:00:09]} 30. Rxh4 {[%clk 0:01:48]}  Bxh4 {[%clk 0:00:10]} 31. Rxa6 {[%clk 0:01:49]}  Bf6 {[%clk 0:00:10]} 32. b4 {[%clk 0:01:47]}  Bc3 {[%clk 0:00:09]} 33. b5 {[%clk 0:01:47]}  Nc5 {[%clk 0:00:08]} 34. Rc6 {[%clk 0:01:47]}  Ne4 {[%clk 0:00:08]} 35. Rc4 {[%clk 0:01:46]}  f5 {[%clk 0:00:07]} 36. b6 {[%clk 0:01:46]}  Be5 {[%clk 0:00:05]} 37. a4 {[%clk 0:01:46]}  Nd6 {[%clk 0:00:03]} 38. Rc7+ {[%clk 0:01:45]}  Kd8 {[%clk 0:00:03]} 39. a5 {[%clk 0:01:45]}  Nb5 {[%clk 0:00:02]} 40. Rc5 {[%clk 0:01:45]}  Bf4+ {[%clk 0:00:02]} 41. Kb1 {[%clk 0:01:46]} 1-0


[Site "https://www.chess.com"]

[Event "Titled Tuesday Blitz July 13 2021"]
[White "Markidis, Konstantinos"]
[Black "Ozen, Bahadir"]
[WhiteFideId "4203500"]
[BlackFideId "6337058"]
[WhiteElo "2304"]
[BlackElo "2503"]
[Result "1/2-1/2"]
[Round "03"]
[TimeControl "180+1"]
[Date "2021.07.13"]
[WhiteClock "0:00:18"]
[BlackClock "0:00:31"]

1. e4 {[%clk 0:03:00]}  c6 {[%clk 0:02:59]} 2. d4 {[%clk 0:03:00]}  d5 {[%clk 0:02:59]} 3. e5 {[%clk 0:03:00]}  Bf5 {[%clk 0:02:59]} 4. Nf3 {[%clk 0:02:59]}  e6 {[%clk 0:02:59]} 5. Be2 {[%clk 0:02:59]}  Ne7 {[%clk 0:02:59]} 6. c3 {[%clk 0:02:53]}  Nc8 {[%clk 0:02:52]} 7. Nbd2 {[%clk 0:02:51]}  Be7 {[%clk 0:02:51]} 8. a4 {[%clk 0:02:40]}  O-O {[%clk 0:02:46]} 9. O-O {[%clk 0:02:32]}  c5 {[%clk 0:02:39]} 10. c4 {[%clk 0:02:23]}  Nb6 {[%clk 0:02:28]} 11. a5 {[%clk 0:02:12]}  Nxc4 {[%clk 0:02:28]} 12. Nxc4 {[%clk 0:02:12]}  dxc4 {[%clk 0:02:28]} 13. Bxc4 {[%clk 0:02:13]}  Nc6 {[%clk 0:02:13]} 14. a6 {[%clk 0:02:07]}  Nxd4 {[%clk 0:01:59]} 15. axb7 {[%clk 0:02:03]}  Rb8 {[%clk 0:01:59]} 16. Nxd4 {[%clk 0:01:54]}  cxd4 {[%clk 0:01:54]} 17. Rxa7 {[%clk 0:01:53]}  Qb6 {[%clk 0:01:52]} 18. Ra6 {[%clk 0:01:23]}  Qc5 {[%clk 0:01:39]} 19. b3 {[%clk 0:01:22]}  Rxb7 {[%clk 0:01:39]} 20. Ba3 {[%clk 0:01:22]}  Qc7 {[%clk 0:01:38]} 21. Bxe7 {[%clk 0:01:20]}  Qxe7 {[%clk 0:01:36]} 22. Qxd4 {[%clk 0:01:20]}  h6 {[%clk 0:01:30]} 23. h3 {[%clk 0:01:13]}  Rfb8 {[%clk 0:01:27]} 24. Rc1 {[%clk 0:00:32]}  Qg5 {[%clk 0:01:25]} 25. f4 {[%clk 0:00:32]}  Qg3 {[%clk 0:01:22]} 26. Qf2 {[%clk 0:00:32]}  Qxf2+ {[%clk 0:01:16]} 27. Kxf2 {[%clk 0:00:32]}  g5 {[%clk 0:01:13]} 28. g4 {[%clk 0:00:30]}  Bh7 {[%clk 0:01:12]} 29. f5 {[%clk 0:00:20]}  exf5 {[%clk 0:01:12]} 30. e6 {[%clk 0:00:21]}  fxe6 {[%clk 0:01:07]} 31. Bxe6+ {[%clk 0:00:20]}  Kg7 {[%clk 0:01:07]} 32. gxf5 {[%clk 0:00:20]}  Rf8 {[%clk 0:01:02]} 33. Rc5 {[%clk 0:00:20]}  h5 {[%clk 0:00:34]} 34. Rac6 {[%clk 0:00:19]}  g4 {[%clk 0:00:28]} 35. Rc7+ {[%clk 0:00:19]}  Rxc7 {[%clk 0:00:28]} 36. Rxc7+ {[%clk 0:00:19]}  Kh6 {[%clk 0:00:28]} 37. hxg4 {[%clk 0:00:19]}  hxg4 {[%clk 0:00:29]} 38. Kg3 {[%clk 0:00:19]}  Bxf5 {[%clk 0:00:28]} 39. Bxf5 {[%clk 0:00:18]}  Rxf5 {[%clk 0:00:29]} 40. Kxg4 {[%clk 0:00:18]}  Rb5 {[%clk 0:00:29]} 41. Rc3 {[%clk 0:00:17]}  Kg6 {[%clk 0:00:29]} 42. Kf4 {[%clk 0:00:18]}  Kf6 {[%clk 0:00:29]} 43. Ke4 {[%clk 0:00:18]}  Ke6 {[%clk 0:00:30]} 44. Kd4 {[%clk 0:00:18]}  Kd6 {[%clk 0:00:30]} 45. Kc4 {[%clk 0:00:18]}  Rc5+ {[%clk 0:00:29]} 46. Kd4 {[%clk 0:00:18]}  Rxc3 {[%clk 0:00:29]} 47. Kxc3 {[%clk 0:00:18]}  Kc5 {[%clk 0:00:29]} 48. b4+ {[%clk 0:00:18]}  Kb5 {[%clk 0:00:30]} 49. Kb3 {[%clk 0:00:19]}  Kb6 {[%clk 0:00:30]} 50. Kc4 {[%clk 0:00:19]}  Kc6 {[%clk 0:00:31]} 51. b5+ {[%clk 0:00:18]} 1/2-1/2


[Site "https://www.chess.com"]

[Event "Titled Tuesday Blitz July 13 2021"]
[White "Moon_stone123"]
[Black "Steinberg, Nitzan"]
[BlackFideId "2801795"]
[WhiteElo "2424"]
[BlackElo "2440"]
[Result "0-1"]
[Round "03"]
[TimeControl "180+1"]
[Date "2021.07.13"]
[WhiteClock "0:00:01"]
[BlackClock "0:00:05"]

1. Nf3 {[%clk 0:03:00]}  d5 {[%clk 0:02:59]} 2. g3 {[%clk 0:03:00]}  Nf6 {[%clk 0:02:55]} 3. Bg2 {[%clk 0:02:59]}  g6 {[%clk 0:02:55]} 4. O-O {[%clk 0:02:53]}  Bg7 {[%clk 0:02:54]} 5. b3 {[%clk 0:02:54]}  Ne4 {[%clk 0:02:53]} 6. d4 {[%clk 0:02:49]}  c5 {[%clk 0:02:53]} 7. Bb2 {[%clk 0:02:48]}  Nc6 {[%clk 0:02:54]} 8. e3 {[%clk 0:02:47]}  O-O {[%clk 0:02:48]} 9. Nbd2 {[%clk 0:02:44]}  Bg4 {[%clk 0:02:48]} 10. h3 {[%clk 0:02:36]}  Nxd2 {[%clk 0:02:35]} 11. Qxd2 {[%clk 0:02:35]}  Bxf3 {[%clk 0:02:36]} 12. Bxf3 {[%clk 0:02:35]}  cxd4 {[%clk 0:02:35]} 13. exd4 {[%clk 0:02:32]}  e6 {[%clk 0:02:36]} 14. c4 {[%clk 0:02:11]}  Qf6 {[%clk 0:02:13]} 15. Qe3 {[%clk 0:02:02]}  dxc4 {[%clk 0:01:43]} 16. bxc4 {[%clk 0:01:57]}  Rad8 {[%clk 0:01:29]} 17. Rad1 {[%clk 0:01:45]}  Qf5 {[%clk 0:01:27]} 18. Bc3 {[%clk 0:01:22]}  Bxd4 {[%clk 0:00:56]} 19. Bxd4 {[%clk 0:01:07]}  Rxd4 {[%clk 0:00:56]} 20. Bxc6 {[%clk 0:00:58]}  Rxd1 {[%clk 0:00:53]} 21. Rxd1 {[%clk 0:00:59]}  bxc6 {[%clk 0:00:53]} 22. Qxa7 {[%clk 0:00:59]}  Qxh3 {[%clk 0:00:50]} 23. Qc5 {[%clk 0:00:53]}  Qg4 {[%clk 0:00:44]} 24. Rd6 {[%clk 0:00:46]}  h5 {[%clk 0:00:32]} 25. Rd4 {[%clk 0:00:40]}  Qe2 {[%clk 0:00:20]} 26. Qxc6 {[%clk 0:00:38]}  Qxa2 {[%clk 0:00:19]} 27. Qd6 {[%clk 0:00:35]}  Rc8 {[%clk 0:00:13]} 28. c5 {[%clk 0:00:35]}  Qb1+ {[%clk 0:00:11]} 29. Kh2 {[%clk 0:00:32]}  Qf5 {[%clk 0:00:09]} 30. Rf4 {[%clk 0:00:10]}  Qxc5 {[%clk 0:00:09]} 31. Qd7 {[%clk 0:00:10]}  Rf8 {[%clk 0:00:09]} 32. Qb7 {[%clk 0:00:05]}  Qe5 {[%clk 0:00:09]} 33. Qf3 {[%clk 0:00:04]}  Kg7 {[%clk 0:00:09]} 34. Re4 {[%clk 0:00:04]}  Qf5 {[%clk 0:00:09]} 35. Rf4 {[%clk 0:00:05]}  Qd5 {[%clk 0:00:08]} 36. Qc3+ {[%clk 0:00:05]}  e5 {[%clk 0:00:08]} 37. Rf3 {[%clk 0:00:02]}  Rh8 {[%clk 0:00:08]} 38. Re3 {[%clk 0:00:02]}  Re8 {[%clk 0:00:08]} 39. Qc7 {[%clk 0:00:01]}  Qe6 {[%clk 0:00:06]} 40. Qc3 {[%clk 0:00:01]}  Re7 {[%clk 0:00:05]} 0-1


[Site "https://www.chess.com"]

[Event "Titled Tuesday Blitz July 13 2021"]
[White "Moskalenko, Alexander"]
[Black "Leve, Nitai"]
[WhiteFideId "4155351"]
[BlackFideId "2006898"]
[WhiteElo "2495"]
[BlackElo "2144"]
[Result "1-0"]
[Round "03"]
[TimeControl "180+1"]
[Date "2021.07.13"]
[WhiteClock "0:00:43"]
[BlackClock "0:00:01"]

1. g3 {[%clk 0:03:00]}  e5 {[%clk 0:02:56]} 2. Bg2 {[%clk 0:02:55]}  d5 {[%clk 0:02:56]} 3. d3 {[%clk 0:02:55]}  Bd6 {[%clk 0:02:53]} 4. Nd2 {[%clk 0:02:56]}  h5 {[%clk 0:02:51]} 5. Bxd5 {[%clk 0:02:55]}  h4 {[%clk 0:02:51]} 6. Bg2 {[%clk 0:02:54]}  hxg3 {[%clk 0:02:51]} 7. hxg3 {[%clk 0:02:55]}  Rxh1 {[%clk 0:02:50]} 8. Bxh1 {[%clk 0:02:56]}  Nc6 {[%clk 0:02:50]} 9. c3 {[%clk 0:02:57]}  Bf5 {[%clk 0:02:46]} 10. Qa4 {[%clk 0:02:56]}  Ne7 {[%clk 0:02:44]} 11. Ne4 {[%clk 0:02:56]}  Qd7 {[%clk 0:02:42]} 12. Nxd6+ {[%clk 0:02:55]}  Qxd6 {[%clk 0:02:43]} 13. Be3 {[%clk 0:02:51]}  a6 {[%clk 0:02:41]} 14. Qb3 {[%clk 0:02:49]}  Be6 {[%clk 0:02:34]} 15. Qxb7 {[%clk 0:02:46]}  Rb8 {[%clk 0:02:34]} 16. Qxa6 {[%clk 0:02:46]}  Rxb2 {[%clk 0:02:32]} 17. Nf3 {[%clk 0:02:45]}  Rxe2+ {[%clk 0:02:28]} 18. Kxe2 {[%clk 0:02:38]}  Nd4+ {[%clk 0:02:28]} 19. Nxd4 {[%clk 0:02:38]}  Qxa6 {[%clk 0:02:28]} 20. Nxe6 {[%clk 0:02:39]}  Qxe6 {[%clk 0:02:24]} 21. a4 {[%clk 0:02:40]}  Qa6 {[%clk 0:02:17]} 22. a5 {[%clk 0:02:39]}  f5 {[%clk 0:02:04]} 23. g4 {[%clk 0:02:28]}  e4 {[%clk 0:02:03]} 24. c4 {[%clk 0:02:26]}  Nc6 {[%clk 0:01:50]} 25. gxf5 {[%clk 0:02:13]}  exd3+ {[%clk 0:01:49]} 26. Kxd3 {[%clk 0:02:13]}  Nxa5 {[%clk 0:01:47]} 27. Bd5 {[%clk 0:02:10]}  c6 {[%clk 0:00:47]} 28. Be6 {[%clk 0:02:09]}  c5 {[%clk 0:00:17]} 29. Bxc5 {[%clk 0:02:02]}  Qb7 {[%clk 0:00:09]} 30. Rxa5 {[%clk 0:01:57]}  Qb1+ {[%clk 0:00:08]} 31. Ke2 {[%clk 0:01:32]}  Qc2+ {[%clk 0:00:08]} 32. Ke3 {[%clk 0:01:07]}  Qc3+ {[%clk 0:00:08]} 33. Ke4 {[%clk 0:01:08]}  Qxa5 {[%clk 0:00:09]} 34. Bd4 {[%clk 0:01:09]}  Kf8 {[%clk 0:00:08]} 35. c5 {[%clk 0:01:07]}  Qa6 {[%clk 0:00:06]} 36. Kd5 {[%clk 0:01:06]}  Qa2+ {[%clk 0:00:05]} 37. Kd6 {[%clk 0:01:06]}  Qa3 {[%clk 0:00:06]} 38. Bd5 {[%clk 0:00:55]}  Qa7 {[%clk 0:00:04]} 39. Be6 {[%clk 0:00:53]}  Ke8 {[%clk 0:00:04]} 40. f4 {[%clk 0:00:50]}  Kd8 {[%clk 0:00:03]} 41. f6 {[%clk 0:00:49]}  Qb8+ {[%clk 0:00:01]} 42. Kd5 {[%clk 0:00:49]}  gxf6 {[%clk 0:00:02]} 43. Bxf6+ {[%clk 0:00:49]}  Ke8 {[%clk 0:00:03]} 44. Be5 {[%clk 0:00:47]}  Qb3+ {[%clk 0:00:03]} 45. Kd6 {[%clk 0:00:47]}  Qb8+ {[%clk 0:00:03]} 46. Kc6 {[%clk 0:00:45]}  Qa8+ {[%clk 0:00:04]} 47. Kb6 {[%clk 0:00:45]}  Ke7 {[%clk 0:00:03]} 48. f5 {[%clk 0:00:44]}  Qa3 {[%clk 0:00:03]} 49. Bd6+ {[%clk 0:00:44]}  Kf6 {[%clk 0:00:03]} 50. Kb7 {[%clk 0:00:43]}  Qb4+ {[%clk 0:00:04]} 51. Kc8 {[%clk 0:00:43]}  Qb5 {[%clk 0:00:03]} 52. Kc7 {[%clk 0:00:43]}  Qa5+ {[%clk 0:00:04]} 53. Kd7 {[%clk 0:00:42]}  Qa7+ {[%clk 0:00:03]} 54. Kc8 {[%clk 0:00:43]}  Qa8+ {[%clk 0:00:03]} 55. Kc7 {[%clk 0:00:43]}  Qa7+ {[%clk 0:00:03]} 56. Kc6 {[%clk 0:00:43]}  Qa8+ {[%clk 0:00:04]} 57. Kb6 {[%clk 0:00:43]}  Qd8+ {[%clk 0:00:03]} 58. Kb7 {[%clk 0:00:43]}  Qe8 {[%clk 0:00:01]} 59. c6 {[%clk 0:00:43]} 1-0


[Site "https://www.chess.com"]

[Event "Titled Tuesday Blitz July 13 2021"]
[White "Nakamura, Hikaru"]
[Black "Zubritskiy, Artyom"]
[WhiteFideId "2016192"]
[BlackFideId "4181247"]
[WhiteElo "2900"]
[BlackElo "2559"]
[Result "1-0"]
[Round "03"]
[TimeControl "180+1"]
[Date "2021.07.13"]
[WhiteClock "0:01:03"]
[BlackClock "0:00:02"]

1. Nf3 {[%clk 0:03:00]}  f5 {[%clk 0:02:57]} 2. d3 {[%clk 0:03:00]}  d6 {[%clk 0:02:57]} 3. e4 {[%clk 0:03:00]}  e5 {[%clk 0:02:55]} 4. Nc3 {[%clk 0:02:45]}  c5 {[%clk 0:02:43]} 5. Nd5 {[%clk 0:02:38]}  Nc6 {[%clk 0:02:33]} 6. c3 {[%clk 0:02:37]}  Nf6 {[%clk 0:02:27]} 7. Bg5 {[%clk 0:02:36]}  Be7 {[%clk 0:02:27]} 8. Bxf6 {[%clk 0:02:22]}  Bxf6 {[%clk 0:02:26]} 9. Qb3 {[%clk 0:02:23]}  Na5 {[%clk 0:01:58]} 10. Qa4+ {[%clk 0:02:22]}  Bd7 {[%clk 0:01:30]} 11. Nxf6+ {[%clk 0:02:20]}  gxf6 {[%clk 0:01:31]} 12. Qd1 {[%clk 0:02:18]}  O-O {[%clk 0:01:30]} 13. Nh4 {[%clk 0:02:16]}  Qb6 {[%clk 0:01:12]} 14. Qd2 {[%clk 0:02:11]}  Nc6 {[%clk 0:01:01]} 15. g3 {[%clk 0:02:08]}  Rad8 {[%clk 0:00:53]} 16. Bg2 {[%clk 0:02:01]}  fxe4 {[%clk 0:00:52]} 17. dxe4 {[%clk 0:02:01]}  Be6 {[%clk 0:00:52]} 18. O-O {[%clk 0:02:01]}  Ne7 {[%clk 0:00:51]} 19. f4 {[%clk 0:02:01]}  Kg7 {[%clk 0:00:33]} 20. Kh1 {[%clk 0:01:57]}  Qc7 {[%clk 0:00:27]} 21. Rae1 {[%clk 0:01:56]}  Bxa2 {[%clk 0:00:23]} 22. g4 {[%clk 0:01:50]}  Be6 {[%clk 0:00:18]} 23. f5 {[%clk 0:01:44]}  Bc4 {[%clk 0:00:17]} 24. Rf3 {[%clk 0:01:45]}  Kf7 {[%clk 0:00:16]} 25. Qh6 {[%clk 0:01:42]}  Ke8 {[%clk 0:00:17]} 26. Qxh7 {[%clk 0:01:40]}  Rf7 {[%clk 0:00:17]} 27. Qh5 {[%clk 0:01:36]}  Nc6 {[%clk 0:00:06]} 28. Bf1 {[%clk 0:01:29]}  Bxf1 {[%clk 0:00:06]} 29. Rexf1 {[%clk 0:01:28]}  d5 {[%clk 0:00:05]} 30. exd5 {[%clk 0:01:23]}  Rxd5 {[%clk 0:00:06]} 31. Ng6 {[%clk 0:01:23]}  Kd7 {[%clk 0:00:06]} 32. Nf4 {[%clk 0:01:16]}  exf4 {[%clk 0:00:04]} 33. Qxf7+ {[%clk 0:01:15]}  Ne7 {[%clk 0:00:05]} 34. Qe6+ {[%clk 0:01:15]}  Kd8 {[%clk 0:00:04]} 35. Rh3 {[%clk 0:01:16]}  Qc6 {[%clk 0:00:03]} 36. Rh8+ {[%clk 0:01:07]}  Kc7 {[%clk 0:00:03]} 37. Qxc6+ {[%clk 0:01:08]}  Nxc6 {[%clk 0:00:03]} 38. Rxf4 {[%clk 0:01:07]}  Ne5 {[%clk 0:00:03]} 39. h4 {[%clk 0:01:04]}  Rd1+ {[%clk 0:00:03]} 40. Kg2 {[%clk 0:01:05]}  Rd2+ {[%clk 0:00:04]} 41. Rf2 {[%clk 0:01:05]}  Rd3 {[%clk 0:00:02]} 42. g5 {[%clk 0:01:06]}  Ng4 {[%clk 0:00:02]} 43. g6 {[%clk 0:01:05]}  Nxf2 {[%clk 0:00:02]} 44. g7 {[%clk 0:01:03]} 1-0


[Site "https://www.chess.com"]

[Event "Titled Tuesday Blitz July 13 2021"]
[White "Nguyen Hong Nhung"]
[Black "Papasimakopoulos, Alexandros"]
[WhiteFideId "12412201"]
[BlackFideId "4244125"]
[WhiteElo "1661"]
[BlackElo "2352"]
[Result "0-1"]
[Round "03"]
[TimeControl "180+1"]
[Date "2021.07.13"]
[WhiteClock "0:00:14"]
[BlackClock "0:00:58"]

1. e4 {[%clk 0:03:00]}  e6 {[%clk 0:03:00]} 2. d4 {[%clk 0:03:00]}  d5 {[%clk 0:02:59]} 3. Nc3 {[%clk 0:03:00]}  Bb4 {[%clk 0:02:58]} 4. e5 {[%clk 0:03:00]}  b6 {[%clk 0:02:58]} 5. a3 {[%clk 0:02:59]}  Bf8 {[%clk 0:02:58]} 6. Nf3 {[%clk 0:02:48]}  Ne7 {[%clk 0:02:58]} 7. Bd3 {[%clk 0:02:44]}  Ba6 {[%clk 0:02:57]} 8. O-O {[%clk 0:02:44]}  Bxd3 {[%clk 0:02:56]} 9. Qxd3 {[%clk 0:02:45]}  c5 {[%clk 0:02:55]} 10. dxc5 {[%clk 0:02:33]}  bxc5 {[%clk 0:02:54]} 11. Bg5 {[%clk 0:02:28]}  a6 {[%clk 0:02:45]} 12. Bf6 {[%clk 0:02:29]}  gxf6 {[%clk 0:02:38]} 13. exf6 {[%clk 0:02:29]}  Ng8 {[%clk 0:02:35]} 14. Rfe1 {[%clk 0:02:18]}  Nxf6 {[%clk 0:02:34]} 15. Rad1 {[%clk 0:02:10]}  Bg7 {[%clk 0:02:26]} 16. Ng5 {[%clk 0:02:00]}  O-O {[%clk 0:02:12]} 17. Qh3 {[%clk 0:01:43]}  h6 {[%clk 0:02:11]} 18. Nxe6 {[%clk 0:01:08]}  fxe6 {[%clk 0:02:10]} 19. Qxe6+ {[%clk 0:01:09]}  Kh8 {[%clk 0:02:10]} 20. Nxd5 {[%clk 0:01:08]}  Nxd5 {[%clk 0:02:10]} 21. Rxd5 {[%clk 0:01:08]}  Qf6 {[%clk 0:02:07]} 22. Qe3 {[%clk 0:00:55]}  Nc6 {[%clk 0:02:03]} 23. h3 {[%clk 0:00:52]}  Rae8 {[%clk 0:01:50]} 24. Qd2 {[%clk 0:00:52]}  Nd4 {[%clk 0:01:24]} 25. Rxc5 {[%clk 0:00:40]}  Qg6 {[%clk 0:01:23]} 26. Kh1 {[%clk 0:00:22]}  Rxe1+ {[%clk 0:01:21]} 27. Qxe1 {[%clk 0:00:23]}  Re8 {[%clk 0:01:08]} 28. Qd2 {[%clk 0:00:20]}  Ne6 {[%clk 0:01:04]} 29. Rc6 {[%clk 0:00:20]}  Qe4 {[%clk 0:01:01]} 30. Rxa6 {[%clk 0:00:19]}  Nf4 {[%clk 0:01:01]} 31. f3 {[%clk 0:00:17]}  Qc4 {[%clk 0:00:58]} 32. b3 {[%clk 0:00:14]}  Qxa6 {[%clk 0:00:57]} 33. Qxf4 {[%clk 0:00:14]}  Qf1+ {[%clk 0:00:57]} 34. Kh2 {[%clk 0:00:14]}  Be5 {[%clk 0:00:58]} 0-1


[Site "https://www.chess.com"]

[Event "Titled Tuesday Blitz July 13 2021"]
[White "Nozdrachev, Leonid"]
[Black "Quizon, Daniel"]
[WhiteFideId "24113433"]
[BlackFideId "5217911"]
[WhiteElo "2221"]
[BlackElo "2329"]
[Result "0-1"]
[Round "03"]
[TimeControl "180+1"]
[Date "2021.07.13"]
[WhiteClock "0:00:07"]
[BlackClock "0:01:24"]

1. e4 {[%clk 0:03:00]}  c5 {[%clk 0:02:59]} 2. c3 {[%clk 0:03:00]}  d5 {[%clk 0:02:57]} 3. exd5 {[%clk 0:02:59]}  Qxd5 {[%clk 0:02:58]} 4. d4 {[%clk 0:03:00]}  Nf6 {[%clk 0:02:58]} 5. Nf3 {[%clk 0:02:59]}  Nc6 {[%clk 0:02:57]} 6. Be3 {[%clk 0:02:52]}  Bg4 {[%clk 0:02:55]} 7. c4 {[%clk 0:02:41]}  Qh5 {[%clk 0:02:52]} 8. d5 {[%clk 0:02:35]}  Ne5 {[%clk 0:02:50]} 9. Be2 {[%clk 0:02:35]}  Nxf3+ {[%clk 0:02:47]} 10. Bxf3 {[%clk 0:02:36]}  Bxf3 {[%clk 0:02:48]} 11. gxf3 {[%clk 0:02:23]}  b5 {[%clk 0:02:41]} 12. cxb5 {[%clk 0:02:20]}  Nxd5 {[%clk 0:02:40]} 13. Nc3 {[%clk 0:02:18]}  Rd8 {[%clk 0:02:30]} 14. Nxd5 {[%clk 0:02:08]}  Rxd5 {[%clk 0:02:31]} 15. Qa4 {[%clk 0:02:02]}  Qxf3 {[%clk 0:02:31]} 16. Rg1 {[%clk 0:01:47]}  Rd7 {[%clk 0:02:25]} 17. Bxc5 {[%clk 0:01:36]}  g6 {[%clk 0:02:18]} 18. Rd1 {[%clk 0:01:18]}  Rxd1+ {[%clk 0:02:06]} 19. Qxd1 {[%clk 0:01:19]}  Qe4+ {[%clk 0:02:07]} 20. Qe2 {[%clk 0:01:17]}  Qd5 {[%clk 0:01:51]} 21. Bb4 {[%clk 0:00:59]}  Qxa2 {[%clk 0:01:40]} 22. Rg3 {[%clk 0:00:49]}  Qb1+ {[%clk 0:01:34]} 23. Qd1 {[%clk 0:00:32]}  Qe4+ {[%clk 0:01:34]} 24. Kf1 {[%clk 0:00:32]}  Qxb4 {[%clk 0:01:35]} 25. Rd3 {[%clk 0:00:28]}  Qxb5 {[%clk 0:01:31]} 26. Kg1 {[%clk 0:00:22]}  f6 {[%clk 0:01:28]} 27. Rb3 {[%clk 0:00:16]}  Qg5+ {[%clk 0:01:26]} 28. Kh1 {[%clk 0:00:16]}  Kf7 {[%clk 0:01:26]} 29. Qd3 {[%clk 0:00:13]}  Qc1+ {[%clk 0:01:25]} 30. Kg2 {[%clk 0:00:13]}  Qc6+ {[%clk 0:01:26]} 31. f3 {[%clk 0:00:12]}  Bg7 {[%clk 0:01:26]} 32. Rc3 {[%clk 0:00:11]}  Qe6 {[%clk 0:01:25]} 33. Rc7 {[%clk 0:00:07]}  Rb8 {[%clk 0:01:24]} 0-1


[Site "https://www.chess.com"]

[Event "Titled Tuesday Blitz July 13 2021"]
[White "Oganisian, Roman"]
[Black "Seo, Jung Min"]
[WhiteFideId "4153006"]
[BlackFideId "1734687"]
[WhiteElo "2204"]
[BlackElo "2486"]
[Result "0-1"]
[Round "03"]
[TimeControl "180+1"]
[Date "2021.07.13"]
[WhiteClock "0:00:08"]
[BlackClock "0:01:37"]

1. e4 {[%clk 0:03:00]}  e5 {[%clk 0:03:00]} 2. Nf3 {[%clk 0:03:00]}  Nc6 {[%clk 0:03:00]} 3. d4 {[%clk 0:03:00]}  exd4 {[%clk 0:03:00]} 4. Nxd4 {[%clk 0:03:01]}  Nf6 {[%clk 0:03:00]} 5. Nxc6 {[%clk 0:03:00]}  bxc6 {[%clk 0:03:00]} 6. Bd3 {[%clk 0:02:59]}  d5 {[%clk 0:02:56]} 7. e5 {[%clk 0:02:57]}  Nd7 {[%clk 0:02:56]} 8. O-O {[%clk 0:02:53]}  Be7 {[%clk 0:02:52]} 9. f4 {[%clk 0:02:51]}  O-O {[%clk 0:02:51]} 10. Nd2 {[%clk 0:02:41]}  f5 {[%clk 0:02:51]} 11. Nf3 {[%clk 0:02:34]}  g6 {[%clk 0:02:39]} 12. Be3 {[%clk 0:02:00]}  Nc5 {[%clk 0:02:28]} 13. Nd4 {[%clk 0:01:54]}  Bd7 {[%clk 0:02:28]} 14. Nb3 {[%clk 0:01:38]}  Nxb3 {[%clk 0:02:22]} 15. axb3 {[%clk 0:01:29]}  c5 {[%clk 0:02:22]} 16. c4 {[%clk 0:01:03]}  d4 {[%clk 0:02:18]} 17. Bd2 {[%clk 0:00:57]}  Bc6 {[%clk 0:02:18]} 18. Ra5 {[%clk 0:00:38]}  Qb8 {[%clk 0:02:18]} 19. Be2 {[%clk 0:00:29]}  Qb7 {[%clk 0:02:13]} 20. Bf3 {[%clk 0:00:28]}  Be4 {[%clk 0:02:13]} 21. Ra3 {[%clk 0:00:17]}  Rfb8 {[%clk 0:02:11]} 22. g4 {[%clk 0:00:16]}  fxg4 {[%clk 0:02:01]} 23. Bxe4 {[%clk 0:00:12]}  Qxe4 {[%clk 0:02:01]} 24. Qxg4 {[%clk 0:00:13]}  Rf8 {[%clk 0:01:56]} 25. Qe6+ {[%clk 0:00:12]}  Rf7 {[%clk 0:01:56]} 26. b4 {[%clk 0:00:10]}  cxb4 {[%clk 0:01:51]} 27. Rg3 {[%clk 0:00:10]}  d3 {[%clk 0:01:48]} 28. f5 {[%clk 0:00:09]}  Bc5+ {[%clk 0:01:47]} 29. Rf2 {[%clk 0:00:09]}  Bxf2+ {[%clk 0:01:39]} 30. Kxf2 {[%clk 0:00:08]}  Qxf5+ {[%clk 0:01:37]} 0-1


[Site "https://www.chess.com"]